{"text_format":"2","workbook":"xlsx","n_sheets":10,"sheets":["Week 5","Week 6","Week 7","Week 8","Week 9","Week 10","Week 11","Week 12","Week 13","Week 14"],"not_rendered":{"charts":0,"images":0,"macros":0,"external_links":0,"defined_names":0,"comments":0,"pivot_tables":0},"unopened":[],"bounds":{"document_bytes":16777216,"sheet_cells":100000,"run_cost":"one","rows_first":2000,"rows_last":500,"rows_between":2000,"halvings":0,"cell_chars":16384,"cell_head_chars":4096},"cells_cut":0,"cells_raw":0,"read":"whole","date_system":"1900"}

{"sheet":"Week 5","index":0,"n_rows":18,"n_cols":6,"rows_kept":18,"cut":false,"hidden":false,"merged":[[1,0,1,4],[0,1,0,4]]}
[null,"Virtual Nest Card"]
["Nest: "]
["Fri","Mon","Tue","Wed","Thurs","Negatives"]
{"$rows_empty":14}
[null,null,null,"Total",{"$f":"SUM(A4:E17)","v":0},0]

{"sheet":"Week 6","index":1,"n_rows":18,"n_cols":6,"rows_kept":18,"cut":false,"hidden":false,"merged":[[1,0,1,4],[0,1,0,4]]}
[null,"Virtual Nest Card"]
["Nest: "]
["Fri","Mon","Tue","Wed","Thurs","Negatives"]
{"$rows_empty":14}
[null,null,null,"Total",{"$f":"SUM(A4:E17)","v":0},0]

{"sheet":"Week 7","index":2,"n_rows":18,"n_cols":6,"rows_kept":18,"cut":false,"hidden":false,"merged":[[1,0,1,4],[0,1,0,4]]}
[null,"Virtual Nest Card"]
["Nest: "]
["Fri","Mon","Tue","Wed","Thurs","Negatives"]
{"$rows_empty":14}
[null,null,null,"Total",{"$f":"SUM(A4:E17)","v":0},0]

{"sheet":"Week 8","index":3,"n_rows":18,"n_cols":6,"rows_kept":18,"cut":false,"hidden":false,"merged":[[1,0,1,4],[0,1,0,4]]}
[null,"Virtual Nest Card"]
["Nest: "]
["Fri","Mon","Tue","Wed","Thurs","Negatives"]
{"$rows_empty":14}
[null,null,null,"Total",{"$f":"SUM(A4:E17)","v":0},0]

{"sheet":"Week 9","index":4,"n_rows":18,"n_cols":6,"rows_kept":18,"cut":false,"hidden":false,"merged":[[1,0,1,4],[0,1,0,4]]}
[null,"Virtual Nest Card"]
["Nest: "]
["Fri","Mon","Tue","Wed","Thurs","Negatives"]
{"$rows_empty":14}
[null,null,null,"Total",{"$f":"SUM(A4:E17)","v":0},0]

{"sheet":"Week 10","index":5,"n_rows":18,"n_cols":6,"rows_kept":18,"cut":false,"hidden":false,"merged":[[1,0,1,4],[0,1,0,4]]}
[null,"Virtual Nest Card"]
["Nest: "]
["Fri","Mon","Tue","Wed","Thurs","Negatives"]
{"$rows_empty":14}
[null,null,null,"Total",{"$f":"SUM(A4:E17)","v":0},0]

{"sheet":"Week 11","index":6,"n_rows":18,"n_cols":6,"rows_kept":18,"cut":false,"hidden":false,"merged":[[0,1,0,4],[1,0,1,4]]}
[null,"Virtual Nest Card"]
["Nest: "]
["Fri","Mon","Tue","Wed","Thurs","Negatives"]
{"$rows_empty":14}
[null,null,null,"Total",{"$f":"SUM(A4:E17)","v":0},0]

{"sheet":"Week 12","index":7,"n_rows":18,"n_cols":6,"rows_kept":18,"cut":false,"hidden":false,"merged":[[0,1,0,4],[1,0,1,4]]}
[null,"Virtual Nest Card"]
["Nest: "]
["Fri","Mon","Tue","Wed","Thurs","Negatives"]
{"$rows_empty":14}
[null,null,null,"Total",{"$f":"SUM(A4:E17)","v":0},0]

{"sheet":"Week 13","index":8,"n_rows":18,"n_cols":6,"rows_kept":18,"cut":false,"hidden":false,"merged":[[0,1,0,4],[1,0,1,4]]}
[null,"Virtual Nest Card"]
["Nest: "]
["Fri","Mon","Tue","Wed","Thurs","Negatives"]
{"$rows_empty":14}
[null,null,null,"Total",{"$f":"SUM(A4:E17)","v":0},0]

{"sheet":"Week 14","index":9,"n_rows":18,"n_cols":6,"rows_kept":18,"cut":false,"hidden":false,"merged":[[0,1,0,4],[1,0,1,4]]}
[null,"Virtual Nest Card"]
["Nest: "]
["Fri","Mon","Tue","Wed","Thurs","Negatives"]
{"$rows_empty":14}
[null,null,null,"Total",{"$f":"SUM(A4:E17)","v":0},0]